[Event "Late-Titled-Tuesday-Blitz-September-19-2023"]
[Site "Chess.com"]
[Date "2023.09.19"]
[Round "6"]
[White "UK_23"]
[Black "Nikachu"]
[Result "1/2-1/2"]
[WhiteElo "2407"]
[BlackElo "2199"]
[TimeControl "180+1"]
[EndTime "15:04:48 PDT"]
[Termination "Game drawn - timeout vs insufficient material"]

1. e4 {[%clk 0:03:00.9]} 1... c5 {[%clk 0:02:59.3]} 2. Nf3 {[%clk 0:03:00.7]}
2... d6 {[%clk 0:02:59.7]} 3. d4 {[%clk 0:03:00.8]} 3... cxd4 {[%clk 0:03:00.6]}
4. Qxd4 {[%clk 0:03:01.2]} 4... Nc6 {[%clk 0:03:00.2]} 5. Qe3 {[%clk 0:03:01.3]}
5... Nf6 {[%clk 0:02:59.1]} 6. h3 {[%clk 0:03:00.5]} 6... g6 {[%clk 0:02:58.6]}
7. Be2 {[%clk 0:03:00.9]} 7... Bg7 {[%clk 0:02:58.9]} 8. O-O {[%clk 0:03:01.1]}
8... O-O {[%clk 0:02:59.4]} 9. Rd1 {[%clk 0:03:01.7]} 9... Qc7 {[%clk
0:02:58.1]} 10. c4 {[%clk 0:03:01.8]} 10... a6 {[%clk 0:02:55.3]} 11. Nc3 {[%clk
0:03:02.2]} 11... Be6 {[%clk 0:02:51.9]} 12. Rb1 {[%clk 0:03:02.1]} 12... Rfc8
{[%clk 0:02:44.2]} 13. b3 {[%clk 0:03:02.3]} 13... Ne5 {[%clk 0:02:43.6]} 14.
Nxe5 {[%clk 0:03:00.9]} 14... dxe5 {[%clk 0:02:43.5]} 15. Bb2 {[%clk 0:03:01.5]}
15... Nd7 {[%clk 0:02:39.8]} 16. Rbc1 {[%clk 0:02:56.8]} 16... Nc5 {[%clk
0:02:31.1]} 17. Nd5 {[%clk 0:02:53.3]} 17... Bxd5 {[%clk 0:02:11.8]} 18. cxd5
{[%clk 0:02:30.9]} 18... Qa5 {[%clk 0:01:44.7]} 19. a3 {[%clk 0:02:12.3]} 19...
Nd7 {[%clk 0:01:41.6]} 20. b4 {[%clk 0:02:08.9]} 20... Qd8 {[%clk 0:01:36.5]}
21. Bg4 {[%clk 0:01:55.5]} 21... Rxc1 {[%clk 0:01:33.8]} 22. Rxc1 {[%clk
0:01:56.4]} 22... Rc8 {[%clk 0:01:33.5]} 23. Rxc8 {[%clk 0:01:51.3]} 23... Qxc8
{[%clk 0:01:34.4]} 24. Qc3 {[%clk 0:01:51.6]} 24... Qxc3 {[%clk 0:01:28.6]} 25.
Bxc3 {[%clk 0:01:52.5]} 25... Nb6 {[%clk 0:01:21.3]} 26. Be2 {[%clk 0:01:40.7]}
26... f5 {[%clk 0:01:18.2]} 27. f3 {[%clk 0:01:37.5]} 27... Kf8 {[%clk 0:01:10]}
28. Kf1 {[%clk 0:01:36]} 28... e6 {[%clk 0:01:04.6]} 29. dxe6 {[%clk 0:01:19.1]}
29... Ke7 {[%clk 0:01:04.4]} 30. exf5 {[%clk 0:01:11.4]} 30... gxf5 {[%clk
0:01:03.9]} 31. f4 {[%clk 0:01:11]} 31... Kxe6 {[%clk 0:01:00.9]} 32. fxe5
{[%clk 0:01:08.6]} 32... Bxe5 {[%clk 0:01:01.8]} 33. Bxe5 {[%clk 0:01:07.8]}
33... Kxe5 {[%clk 0:01:00.5]} 34. Bf3 {[%clk 0:01:08.7]} 34... Nd5 {[%clk
0:00:42.2]} 35. Ke2 {[%clk 0:01:07.9]} 35... b6 {[%clk 0:00:33.9]} 36. Kd3
{[%clk 0:01:06.1]} 36... Nc7 {[%clk 0:00:18.6]} 37. Kc4 {[%clk 0:01:00.4]} 37...
Kd6 {[%clk 0:00:14.6]} 38. a4 {[%clk 0:00:57.2]} 38... h6 {[%clk 0:00:13.7]} 39.
Bb7 {[%clk 0:00:51.8]} 39... b5+ {[%clk 0:00:09.8]} 40. axb5 {[%clk 0:00:49.7]}
40... axb5+ {[%clk 0:00:10.7]} 41. Kd4 {[%clk 0:00:48.3]} 41... Ne6+ {[%clk
0:00:11]} 42. Ke3 {[%clk 0:00:47.7]} 42... Ke5 {[%clk 0:00:07.8]} 43. Bc8 {[%clk
0:00:45.4]} 43... Nd4 {[%clk 0:00:06.3]} 44. Kd3 {[%clk 0:00:39.6]} 44... Nc6
{[%clk 0:00:05.3]} 45. Bd7 {[%clk 0:00:36.2]} 45... Nxb4+ {[%clk 0:00:04.4]} 46.
Ke2 {[%clk 0:00:33.5]} 46... Nd5 {[%clk 0:00:02.2]} 47. Kd3 {[%clk 0:00:27.1]}
47... Nf4+ {[%clk 0:00:02.5]} 48. Ke3 {[%clk 0:00:26.7]} 48... Nxg2+ {[%clk
0:00:01.6]} 49. Kf2 {[%clk 0:00:25.7]} 49... Nf4 {[%clk 0:00:01.4]} 50. Bxb5
{[%clk 0:00:26.6]} 50... Nxh3+ {[%clk 0:00:01.6]} 51. Kg3 {[%clk 0:00:27.5]}
51... Ng5 {[%clk 0:00:02.1]} 52. Be2 {[%clk 0:00:27.5]} 52... Ne6 {[%clk
0:00:01.9]} 53. Kh4 {[%clk 0:00:27.9]} 1/2-1/2

[Event "Late-Titled-Tuesday-Blitz-September-19-2023"]
[Site "Chess.com"]
[Date "2023.09.19"]
[Round "6"]
[White "TEREZANA"]
[Black "Nekoo04"]
[Result "0-1"]
[WhiteElo "2475"]
[BlackElo "2348"]
[TimeControl "180+1"]
[EndTime "15:04:52 PDT"]
[Termination "Nekoo04 won by resignation"]

1. d4 {[%clk 0:02:57.3]} 1... d5 {[%clk 0:02:57.8]} 2. Nf3 {[%clk 0:02:57.7]}
2... Nf6 {[%clk 0:02:57.2]} 3. Bg5 {[%clk 0:02:57.9]} 3... Bf5 {[%clk
0:02:39.9]} 4. e3 {[%clk 0:02:57.4]} 4... e6 {[%clk 0:02:39.4]} 5. Bd3 {[%clk
0:02:52.1]} 5... Bxd3 {[%clk 0:02:32.8]} 6. Qxd3 {[%clk 0:02:53]} 6... Nbd7
{[%clk 0:02:27]} 7. O-O {[%clk 0:02:52.3]} 7... Be7 {[%clk 0:02:13.9]} 8. c4
{[%clk 0:02:52.2]} 8... O-O {[%clk 0:02:12.6]} 9. Nc3 {[%clk 0:02:51.6]} 9... c6
{[%clk 0:02:12.3]} 10. Bf4 {[%clk 0:02:37.2]} 10... Rc8 {[%clk 0:01:51.5]} 11.
Rfd1 {[%clk 0:02:26.9]} 11... dxc4 {[%clk 0:01:15]} 12. Qxc4 {[%clk 0:02:26.8]}
12... c5 {[%clk 0:01:07]} 13. d5 {[%clk 0:02:26.9]} 13... Nb6 {[%clk 0:01:00.9]}
14. Qe2 {[%clk 0:02:19.7]} 14... exd5 {[%clk 0:01:01]} 15. e4 {[%clk 0:02:16.1]}
15... d4 {[%clk 0:00:58.3]} 16. e5 {[%clk 0:02:12.9]} 16... Nfd5 {[%clk
0:00:56.3]} 17. Nxd5 {[%clk 0:02:09]} 17... Nxd5 {[%clk 0:00:57.2]} 18. Bg3
{[%clk 0:02:09.6]} 18... Re8 {[%clk 0:00:49.3]} 19. Qe4 {[%clk 0:02:09.3]} 19...
Bf8 {[%clk 0:00:44.6]} 20. Bh4 {[%clk 0:01:59.9]} 20... Qd7 {[%clk 0:00:44.8]}
21. Ng5 {[%clk 0:01:57.6]} 21... f5 {[%clk 0:00:36.1]} 22. e6 {[%clk 0:01:35.1]}
22... Qc6 {[%clk 0:00:04.6]} 23. Qxf5 {[%clk 0:01:34.5]} 23... Nf6 {[%clk
0:00:04.8]} 24. Re1 {[%clk 0:01:22.6]} 24... Qd5 {[%clk 0:00:04.7]} 25. Qxd5
{[%clk 0:01:11.4]} 25... Nxd5 {[%clk 0:00:05.6]} 26. Nf7 {[%clk 0:01:12.3]}
26... Nc7 {[%clk 0:00:03.8]} 27. Ng5 {[%clk 0:01:07.5]} 27... h6 {[%clk
0:00:03.4]} 28. Nf3 {[%clk 0:00:56.7]} 28... Nxe6 {[%clk 0:00:03.5]} 29. Ne5
{[%clk 0:00:55.7]} 29... Nf4 {[%clk 0:00:02.9]} 30. Bg3 {[%clk 0:00:53.9]} 30...
Nd5 {[%clk 0:00:03.2]} 31. Nc4 {[%clk 0:00:51.8]} 31... Nb4 {[%clk 0:00:02.5]}
32. a3 {[%clk 0:00:43.1]} 32... Nc2 {[%clk 0:00:01.6]} 33. Rxe8 {[%clk
0:00:42.4]} 33... Rxe8 {[%clk 0:00:02.5]} 34. Rc1 {[%clk 0:00:43]} 34... Re1+
{[%clk 0:00:02.7]} 35. Rxe1 {[%clk 0:00:40.5]} 35... Nxe1 {[%clk 0:00:03.6]} 36.
Na5 {[%clk 0:00:41.2]} 36... b6 {[%clk 0:00:02.7]} 37. Nc6 {[%clk 0:00:41.4]}
37... Nd3 {[%clk 0:00:03.2]} 38. Nxa7 {[%clk 0:00:30.7]} 38... Nxb2 {[%clk
0:00:03]} 39. Kf1 {[%clk 0:00:31.3]} 39... d3 {[%clk 0:00:02.7]} 40. Ke1 {[%clk
0:00:29]} 40... c4 {[%clk 0:00:02.9]} 41. Be5 {[%clk 0:00:28.6]} 41... Bxa3
{[%clk 0:00:02.7]} 42. Nb5 {[%clk 0:00:25.7]} 42... Bb4+ {[%clk 0:00:01.9]} 43.
Kf1 {[%clk 0:00:23.5]} 43... d2 {[%clk 0:00:02]} 44. g3 {[%clk 0:00:23.1]} 44...
d1=Q+ {[%clk 0:00:01.7]} 45. Kg2 {[%clk 0:00:24]} 45... Qd5+ {[%clk 0:00:01.9]}
0-1

[Event "Late-Titled-Tuesday-Blitz-September-19-2023"]
[Site "Chess.com"]
[Date "2023.09.19"]
[Round "6"]
[White "fyall777"]
[Black "Hasangatin_Ramil"]
[Result "0-1"]
[WhiteElo "2556"]
[BlackElo "2714"]
[TimeControl "180+1"]
[EndTime "15:04:56 PDT"]
[Termination "Hasangatin_Ramil won on time"]

1. d4 {[%clk 0:02:31.6]} 1... d6 {[%clk 0:02:59.4]} 2. c4 {[%clk 0:02:30.4]}
2... e5 {[%clk 0:02:59.2]} 3. dxe5 {[%clk 0:02:29]} 3... dxe5 {[%clk 0:03:00.1]}
4. Qxd8+ {[%clk 0:02:29]} 4... Kxd8 {[%clk 0:03:01]} 5. Nc3 {[%clk 0:02:29.1]}
5... Be6 {[%clk 0:03:01]} 6. b3 {[%clk 0:02:27.7]} 6... Nd7 {[%clk 0:03:01.3]}
7. Bb2 {[%clk 0:02:26.3]} 7... c6 {[%clk 0:03:01.7]} 8. O-O-O {[%clk 0:02:26]}
8... Kc7 {[%clk 0:03:02.1]} 9. g3 {[%clk 0:02:26.2]} 9... f6 {[%clk 0:03:02.4]}
10. Bh3 {[%clk 0:02:24.5]} 10... Bxh3 {[%clk 0:02:57.3]} 11. Nxh3 {[%clk
0:02:25.4]} 11... Nh6 {[%clk 0:02:55.1]} 12. Rhg1 {[%clk 0:02:14.2]} 12... Nf7
{[%clk 0:02:54]} 13. g4 {[%clk 0:02:09.6]} 13... h5 {[%clk 0:02:50.8]} 14. g5
{[%clk 0:02:09.1]} 14... f5 {[%clk 0:02:51]} 15. f4 {[%clk 0:01:57.3]} 15... g6
{[%clk 0:02:46.7]} 16. e4 {[%clk 0:01:55.4]} 16... Bc5 {[%clk 0:02:42.2]} 17.
Rge1 {[%clk 0:01:45.2]} 17... exf4 {[%clk 0:02:31.9]} 18. exf5 {[%clk
0:01:44.7]} 18... Be3+ {[%clk 0:02:29]} 19. Rxe3 {[%clk 0:01:17.3]} 19... fxe3
{[%clk 0:02:29.9]} 20. fxg6 {[%clk 0:01:17.5]} 20... Nfe5 {[%clk 0:02:22.6]} 21.
Nf4 {[%clk 0:01:17.7]} 21... Rag8 {[%clk 0:02:12.8]} 22. g7 {[%clk 0:01:13.5]}
22... Rh7 {[%clk 0:02:12.8]} 23. Ne6+ {[%clk 0:01:04.7]} 23... Kc8 {[%clk
0:02:12.3]} 24. Ne4 {[%clk 0:01:04]} 24... e2 {[%clk 0:01:54.7]} 25. Re1 {[%clk
0:00:33.6]} 25... Nd3+ {[%clk 0:01:51.2]} 26. Kd2 {[%clk 0:00:34.2]} 26... Nxb2
{[%clk 0:01:30.8]} 27. Rxe2 {[%clk 0:00:34]} 27... Rhxg7 {[%clk 0:01:18.8]} 28.
Nxg7 {[%clk 0:00:33.5]} 28... Rxg7 {[%clk 0:01:19.3]} 29. Kc2 {[%clk 0:00:33.2]}
29... Nxc4 {[%clk 0:01:13.2]} 30. bxc4 {[%clk 0:00:33.1]} 30... Kc7 {[%clk
0:01:13.6]} 31. h4 {[%clk 0:00:29.9]} 31... Re7 {[%clk 0:00:59.4]} 32. Kd1
{[%clk 0:00:24.7]} 32... Ne5 {[%clk 0:00:55.4]} 33. Nf6 {[%clk 0:00:23.2]} 33...
Ng6 {[%clk 0:00:48.4]} 34. Rxe7+ {[%clk 0:00:19.7]} 34... Nxe7 {[%clk
0:00:49.3]} 35. Nxh5 {[%clk 0:00:19.8]} 35... Ng6 {[%clk 0:00:49.3]} 36. c5
{[%clk 0:00:17]} 36... Kd8 {[%clk 0:00:43.9]} 37. Ke2 {[%clk 0:00:15.9]} 37...
Ke7 {[%clk 0:00:43.5]} 38. Ke3 {[%clk 0:00:14.3]} 38... Nxh4 {[%clk 0:00:43.3]}
39. Nf4 {[%clk 0:00:14.3]} 39... Nf5+ {[%clk 0:00:41.2]} 40. Ke4 {[%clk
0:00:14.5]} 40... Ng7 {[%clk 0:00:35.3]} 41. Ke5 {[%clk 0:00:13.3]} 41... b6
{[%clk 0:00:35.6]} 42. cxb6 {[%clk 0:00:10.5]} 42... axb6 {[%clk 0:00:36.5]} 43.
a4 {[%clk 0:00:10.9]} 43... Ne8 {[%clk 0:00:32]} 44. g6 {[%clk 0:00:10.2]} 44...
Ng7 {[%clk 0:00:31.3]} 45. Nd3 {[%clk 0:00:10.4]} 45... Ne6 {[%clk 0:00:24]} 46.
Nb4 {[%clk 0:00:09.6]} 46... Nd8 {[%clk 0:00:24]} 47. g7 {[%clk 0:00:08.9]}
47... Kf7 {[%clk 0:00:23.8]} 48. Kd6 {[%clk 0:00:08.8]} 48... c5 {[%clk
0:00:22.6]} 49. Nd5 {[%clk 0:00:08.5]} 49... c4 {[%clk 0:00:22.4]} 0-1

[Event "Late-Titled-Tuesday-Blitz-September-19-2023"]
[Site "Chess.com"]
[Date "2023.09.19"]
[Round "6"]
[White "IgorBjelobrk"]
[Black "sebastianmarinp"]
[Result "1/2-1/2"]
[WhiteElo "2681"]
[BlackElo "2411"]
[TimeControl "180+1"]
[EndTime "15:04:56 PDT"]
[Termination "Game drawn by repetition"]

1. d4 {[%clk 0:03:00.9]} 1... d5 {[%clk 0:02:58]} 2. c4 {[%clk 0:03:00.6]} 2...
c6 {[%clk 0:02:58.4]} 3. Nf3 {[%clk 0:03:00.5]} 3... Nf6 {[%clk 0:02:58.7]} 4.
Qc2 {[%clk 0:03:00.7]} 4... e6 {[%clk 0:02:58]} 5. g3 {[%clk 0:03:00.5]} 5...
Be7 {[%clk 0:02:53.9]} 6. Bg2 {[%clk 0:03:00.6]} 6... O-O {[%clk 0:02:53.5]} 7.
O-O {[%clk 0:03:01]} 7... Nbd7 {[%clk 0:02:50.6]} 8. Rd1 {[%clk 0:02:57.7]} 8...
b6 {[%clk 0:02:42.8]} 9. b3 {[%clk 0:02:56.4]} 9... Bb7 {[%clk 0:02:36.1]} 10.
Nc3 {[%clk 0:02:56]} 10... Rc8 {[%clk 0:02:34.8]} 11. e4 {[%clk 0:02:55.8]}
11... dxe4 {[%clk 0:02:31.5]} 12. Nxe4 {[%clk 0:02:55.8]} 12... c5 {[%clk
0:02:07.6]} 13. Nxf6+ {[%clk 0:02:53.7]} 13... Bxf6 {[%clk 0:02:08.5]} 14. Ng5
{[%clk 0:02:50.3]} 14... Bxg5 {[%clk 0:02:05]} 15. Bxb7 {[%clk 0:02:45.4]} 15...
Rc7 {[%clk 0:02:00]} 16. dxc5 {[%clk 0:02:41.4]} 16... Bxc1 {[%clk 0:01:41.5]}
17. Raxc1 {[%clk 0:02:42.3]} 17... Rxb7 {[%clk 0:01:32]} 18. c6 {[%clk
0:02:41.9]} 18... Rc7 {[%clk 0:01:31.1]} 19. cxd7 {[%clk 0:02:42.1]} 19... Rxd7
{[%clk 0:01:29.6]} 20. Rxd7 {[%clk 0:02:42.1]} 20... Qxd7 {[%clk 0:01:30.5]} 21.
Rd1 {[%clk 0:02:42.4]} 21... Qc6 {[%clk 0:01:27]} 22. Qd2 {[%clk 0:02:42.6]}
22... g6 {[%clk 0:01:16.8]} 23. Qd7 {[%clk 0:02:42]} 23... Qf3 {[%clk
0:01:08.1]} 24. Rd2 {[%clk 0:02:34.9]} 24... Qc3 {[%clk 0:01:03]} 25. Qd4 {[%clk
0:02:33.8]} 25... Qa5 {[%clk 0:00:56.9]} 26. a4 {[%clk 0:02:23]} 26... Rc8
{[%clk 0:00:46]} 27. Rd3 {[%clk 0:02:22.8]} 27... Qe1+ {[%clk 0:00:40.7]} 28.
Kg2 {[%clk 0:02:22.5]} 28... Rc5 {[%clk 0:00:38.5]} 29. Re3 {[%clk 0:02:03.5]}
29... Qb4 {[%clk 0:00:30.3]} 30. Kf1 {[%clk 0:01:45.9]} 30... Rf5 {[%clk
0:00:26.2]} 31. Rd3 {[%clk 0:01:44.6]} 31... a6 {[%clk 0:00:20]} 32. Qd6 {[%clk
0:01:37.9]} 32... Qa5 {[%clk 0:00:10.9]} 33. Qb8+ {[%clk 0:01:36.9]} 33... Kg7
{[%clk 0:00:10.5]} 34. Ke2 {[%clk 0:01:21]} 34... Qe5+ {[%clk 0:00:09.8]} 35.
Qxe5+ {[%clk 0:01:20.2]} 35... Rxe5+ {[%clk 0:00:10.7]} 36. Kd2 {[%clk
0:01:20.4]} 36... b5 {[%clk 0:00:11.6]} 37. cxb5 {[%clk 0:01:09.2]} 37... axb5
{[%clk 0:00:12.5]} 38. a5 {[%clk 0:01:09.5]} 38... b4 {[%clk 0:00:12.3]} 39. Rd4
{[%clk 0:01:08.8]} 39... Rxa5 {[%clk 0:00:12.1]} 40. Rxb4 {[%clk 0:01:08.9]}
40... Ra2+ {[%clk 0:00:11.9]} 41. Ke3 {[%clk 0:01:09.1]} 41... Kf6 {[%clk
0:00:10.9]} 42. Rb7 {[%clk 0:01:08.8]} 42... g5 {[%clk 0:00:10.9]} 43. h3 {[%clk
0:01:08]} 43... h5 {[%clk 0:00:10.8]} 44. b4 {[%clk 0:01:07.3]} 44... g4 {[%clk
0:00:10.8]} 45. hxg4 {[%clk 0:01:06.9]} 45... hxg4 {[%clk 0:00:11.7]} 46. Rc7
{[%clk 0:01:05.5]} 46... Kg6 {[%clk 0:00:10.2]} 47. Rc4 {[%clk 0:01:05.4]} 47...
f5 {[%clk 0:00:10.2]} 48. b5 {[%clk 0:00:44.6]} 48... Rb2 {[%clk 0:00:10.3]} 49.
Rc5 {[%clk 0:00:45]} 49... Kf6 {[%clk 0:00:10.1]} 50. f4 {[%clk 0:00:39.4]}
50... Rb3+ {[%clk 0:00:08.3]} 51. Kf2 {[%clk 0:00:39.3]} 51... Rb2+ {[%clk
0:00:08.2]} 52. Ke1 {[%clk 0:00:39.7]} 52... Rb3 {[%clk 0:00:07.2]} 53. Kf2
{[%clk 0:00:35.7]} 53... Rb2+ {[%clk 0:00:07.4]} 54. Kg1 {[%clk 0:00:30.7]}
54... Rb1+ {[%clk 0:00:06.9]} 55. Kf2 {[%clk 0:00:31]} 55... Rb2+ {[%clk
0:00:07.4]} 1/2-1/2

[Event "Late-Titled-Tuesday-Blitz-September-19-2023"]
[Site "Chess.com"]
[Date "2023.09.19"]
[Round "6"]
[White "Nick12772"]
[Black "martinez_95"]
[Result "0-1"]
[WhiteElo "2341"]
[BlackElo "2201"]
[TimeControl "180+1"]
[EndTime "15:05:08 PDT"]
[Termination "martinez_95 won by resignation"]

1. Nf3 {[%clk 0:03:00.9]} 1... g6 {[%clk 0:02:56.4]} 2. g3 {[%clk 0:03:01.2]}
2... Bg7 {[%clk 0:02:57]} 3. Bg2 {[%clk 0:03:02.1]} 3... d6 {[%clk 0:02:57.5]}
4. O-O {[%clk 0:03:02.7]} 4... Nd7 {[%clk 0:02:58]} 5. c4 {[%clk 0:03:03.3]}
5... a6 {[%clk 0:02:57.3]} 6. Nc3 {[%clk 0:03:03.9]} 6... Rb8 {[%clk 0:02:57.8]}
7. a4 {[%clk 0:03:02.3]} 7... e6 {[%clk 0:02:55.5]} 8. b3 {[%clk 0:03:02]} 8...
Ne7 {[%clk 0:02:55.8]} 9. Bb2 {[%clk 0:03:02.4]} 9... O-O {[%clk 0:02:56.4]} 10.
Qc2 {[%clk 0:03:00.7]} 10... Nc6 {[%clk 0:02:54.4]} 11. Rac1 {[%clk 0:02:57.2]}
11... Nb4 {[%clk 0:02:54.7]} 12. Qb1 {[%clk 0:02:57.6]} 12... c5 {[%clk
0:02:54.2]} 13. Qa1 {[%clk 0:02:57.4]} 13... b6 {[%clk 0:02:46.6]} 14. h4 {[%clk
0:02:43.5]} 14... h5 {[%clk 0:02:43.1]} 15. Ne4 {[%clk 0:02:39.2]} 15... Bxb2
{[%clk 0:02:38.7]} 16. Qxb2 {[%clk 0:02:40.1]} 16... Qe7 {[%clk 0:02:35.1]} 17.
Nfg5 {[%clk 0:02:27.9]} 17... Bb7 {[%clk 0:02:32.3]} 18. Rfd1 {[%clk 0:02:15.2]}
18... f5 {[%clk 0:02:30.3]} 19. Nc3 {[%clk 0:02:04.1]} 19... Bxg2 {[%clk
0:02:30.1]} 20. Kxg2 {[%clk 0:02:05]} 20... Ne5 {[%clk 0:02:29.4]} 21. d4 {[%clk
0:01:56.2]} 21... Nf7 {[%clk 0:02:17.2]} 22. Nxf7 {[%clk 0:01:46.7]} 22... Rxf7
{[%clk 0:02:14.5]} 23. dxc5 {[%clk 0:01:46.7]} 23... bxc5 {[%clk 0:02:14.2]} 24.
Qd2 {[%clk 0:01:44.6]} 24... Rd8 {[%clk 0:01:57.6]} 25. e3 {[%clk 0:01:42.4]}
25... Qb7+ {[%clk 0:01:49.5]} 26. Kg1 {[%clk 0:01:41]} 26... g5 {[%clk
0:01:46.9]} 27. hxg5 {[%clk 0:01:37.6]} 27... h4 {[%clk 0:01:45.9]} 28. Qe2
{[%clk 0:01:11.3]} 28... Rh7 {[%clk 0:01:37.1]} 29. g4 {[%clk 0:01:03.4]} 29...
h3 {[%clk 0:01:31.8]} 30. e4 {[%clk 0:00:56.4]} 30... h2+ {[%clk 0:01:17.2]} 31.
Kh1 {[%clk 0:00:56.6]} 31... Nc6 {[%clk 0:01:05.4]} 32. exf5 {[%clk 0:00:54.9]}
32... Nd4+ {[%clk 0:01:01.6]} 33. Qe4 {[%clk 0:00:55.1]} 33... d5 {[%clk
0:00:56.3]} 34. cxd5 {[%clk 0:00:51.3]} 34... exd5 {[%clk 0:00:51]} 35. Qg2
{[%clk 0:00:43.1]} 35... Nxb3 {[%clk 0:00:42.1]} 36. Rxd5 {[%clk 0:00:35.9]}
36... Rxd5 {[%clk 0:00:38.2]} 37. Nxd5 {[%clk 0:00:36.2]} 37... Nxc1 {[%clk
0:00:32.6]} 38. g6 {[%clk 0:00:23.5]} 38... Re7 {[%clk 0:00:20.4]} 39. f6 {[%clk
0:00:15.6]} 39... Re1+ {[%clk 0:00:19]} 40. Kxh2 {[%clk 0:00:16.3]} 40... Qb8+
{[%clk 0:00:17.9]} 41. Kh3 {[%clk 0:00:11.5]} 41... Qb3+ {[%clk 0:00:16.9]} 42.
f3 {[%clk 0:00:08.5]} 42... Qxd5 {[%clk 0:00:15.8]} 43. f7+ {[%clk 0:00:08.8]}
43... Kg7 {[%clk 0:00:13.5]} 44. Qb2+ {[%clk 0:00:08.6]} 44... Qd4 {[%clk
0:00:13.4]} 45. Qxd4+ {[%clk 0:00:02.4]} 45... cxd4 {[%clk 0:00:13.1]} 46. f4
{[%clk 0:00:02.3]} 46... d3 {[%clk 0:00:12.9]} 47. f5 {[%clk 0:00:02.5]} 47...
Rf1 {[%clk 0:00:11.7]} 48. Kh4 {[%clk 0:00:01.6]} 48... d2 {[%clk 0:00:11.7]}
49. g5 {[%clk 0:00:01.8]} 49... Rxf5 {[%clk 0:00:10.9]} 50. Kh5 {[%clk
0:00:02.4]} 50... d1=Q+ {[%clk 0:00:08.8]} 0-1

[Event "Late-Titled-Tuesday-Blitz-September-19-2023"]
[Site "Chess.com"]
[Date "2023.09.19"]
[Round "6"]
[White "FrancescoSorcinelli"]
[Black "davigator"]
[Result "0-1"]
[WhiteElo "2105"]
[BlackElo "2331"]
[TimeControl "180+1"]
[EndTime "15:05:08 PDT"]
[Termination "davigator won by checkmate"]

1. Nf3 {[%clk 0:03:00.9]} 1... Nf6 {[%clk 0:02:57.8]} 2. g3 {[%clk 0:03:00.1]}
2... g6 {[%clk 0:02:57.9]} 3. Bg2 {[%clk 0:03:00.2]} 3... Bg7 {[%clk 0:02:58.3]}
4. O-O {[%clk 0:03:00.7]} 4... O-O {[%clk 0:02:58.6]} 5. d4 {[%clk 0:03:00.6]}
5... d6 {[%clk 0:02:58.7]} 6. b3 {[%clk 0:03:00.3]} 6... d5 {[%clk 0:02:56.4]}
7. Bb2 {[%clk 0:02:59.3]} 7... a5 {[%clk 0:02:57]} 8. a3 {[%clk 0:02:58.9]} 8...
Bf5 {[%clk 0:02:54.7]} 9. c4 {[%clk 0:02:58.9]} 9... c6 {[%clk 0:02:54.7]} 10.
Nc3 {[%clk 0:02:59]} 10... Nbd7 {[%clk 0:02:52.5]} 11. Nh4 {[%clk 0:02:54.7]}
11... Be6 {[%clk 0:02:51.8]} 12. e4 {[%clk 0:02:40.4]} 12... Nb6 {[%clk
0:02:48.2]} 13. e5 {[%clk 0:02:35.5]} 13... Ne8 {[%clk 0:02:42.3]} 14. c5 {[%clk
0:02:33.2]} 14... Nd7 {[%clk 0:02:42.2]} 15. f4 {[%clk 0:02:33]} 15... b6 {[%clk
0:02:41]} 16. b4 {[%clk 0:02:33.1]} 16... bxc5 {[%clk 0:02:29.1]} 17. dxc5
{[%clk 0:02:22]} 17... Qb8 {[%clk 0:02:24.2]} 18. f5 {[%clk 0:02:03.3]} 18...
gxf5 {[%clk 0:02:20.6]} 19. Nxf5 {[%clk 0:01:42]} 19... Bxf5 {[%clk 0:02:20.6]}
20. Rxf5 {[%clk 0:01:42.7]} 20... e6 {[%clk 0:02:20.7]} 21. Rg5 {[%clk
0:01:40.9]} 21... h6 {[%clk 0:02:20.8]} 22. Rh5 {[%clk 0:01:29.6]} 22... Nxc5
{[%clk 0:02:15.8]} 23. Ne2 {[%clk 0:01:04.2]} 23... axb4 {[%clk 0:01:56.1]} 24.
axb4 {[%clk 0:01:04.2]} 24... Rxa1 {[%clk 0:01:55.7]} 25. Qxa1 {[%clk
0:01:03.9]} 25... Qxb4 {[%clk 0:01:54.5]} 26. Ba3 {[%clk 0:01:03.5]} 26... Qc4
{[%clk 0:01:54]} 27. Bf1 {[%clk 0:00:44]} 27... Nb3 {[%clk 0:01:37.1]} 28. Qd1
{[%clk 0:00:29.7]} 28... c5 {[%clk 0:01:36.6]} 29. Rh4 {[%clk 0:00:27.8]} 29...
Qb5 {[%clk 0:01:35]} 30. Nd4 {[%clk 0:00:16.2]} 30... Qb6 {[%clk 0:01:34]} 31.
Nxb3 {[%clk 0:00:14.9]} 31... Bxe5 {[%clk 0:01:28.7]} 32. Bxc5 {[%clk
0:00:15.1]} 32... Qc7 {[%clk 0:01:21.1]} 33. Bxf8 {[%clk 0:00:14.4]} 33... Kxf8
{[%clk 0:01:21.9]} 34. Qh5 {[%clk 0:00:09.7]} 34... Bg7 {[%clk 0:01:20.8]} 35.
Qg4 {[%clk 0:00:08.7]} 35... Nf6 {[%clk 0:01:20.2]} 36. Qe2 {[%clk 0:00:08.1]}
36... Qb6+ {[%clk 0:01:19]} 37. Nd4 {[%clk 0:00:04.8]} 37... Ne4 {[%clk
0:01:19.1]} 38. Rxe4 {[%clk 0:00:03.8]} 38... dxe4 {[%clk 0:01:16.8]} 39. Qxe4
{[%clk 0:00:03.4]} 39... Bxd4+ {[%clk 0:01:17.1]} 40. Kg2 {[%clk 0:00:03.4]}
40... Qb2+ {[%clk 0:01:14.3]} 41. Kh3 {[%clk 0:00:03.3]} 41... Bf6 {[%clk
0:01:11.6]} 42. Bg2 {[%clk 0:00:03.7]} 42... Kg7 {[%clk 0:01:10.7]} 43. Qa8
{[%clk 0:00:04.6]} 43... Qd4 {[%clk 0:01:08.1]} 44. Qe4 {[%clk 0:00:05.5]} 44...
Qc5 {[%clk 0:01:07.7]} 45. Qf3 {[%clk 0:00:05.1]} 45... h5 {[%clk 0:01:05.5]}
46. Qe2 {[%clk 0:00:03.5]} 46... Qf5+ {[%clk 0:01:03.8]} 47. g4 {[%clk 0:00:02]}
47... hxg4+ {[%clk 0:01:00.2]} 48. Qxg4+ {[%clk 0:00:02.9]} 48... Qxg4+ {[%clk
0:01:00.5]} 49. Kxg4 {[%clk 0:00:03.8]} 49... Be5 {[%clk 0:01:00.2]} 50. h4
{[%clk 0:00:04.2]} 50... Bd4 {[%clk 0:00:59.6]} 51. h5 {[%clk 0:00:03.7]} 51...
f5+ {[%clk 0:00:59.3]} 52. Kg3 {[%clk 0:00:04]} 52... Be3 {[%clk 0:00:58.4]} 53.
Bf3 {[%clk 0:00:04.2]} 53... Kf6 {[%clk 0:00:58.4]} 54. Kg2 {[%clk 0:00:04.2]}
54... Kg5 {[%clk 0:00:58.5]} 55. Kf1 {[%clk 0:00:04.4]} 55... e5 {[%clk
0:00:58.7]} 56. Ke2 {[%clk 0:00:05]} 56... Bc5 {[%clk 0:00:56.4]} 57. Kd3 {[%clk
0:00:03.5]} 57... Bf8 {[%clk 0:00:53.3]} 58. Bd5 {[%clk 0:00:02.8]} 58... Kf4
{[%clk 0:00:53.1]} 59. Be6 {[%clk 0:00:02.7]} 59... e4+ {[%clk 0:00:53.3]} 60.
Ke2 {[%clk 0:00:03.3]} 60... Ke5 {[%clk 0:00:53.1]} 61. Bc8 {[%clk 0:00:03.3]}
61... f4 {[%clk 0:00:53.2]} 62. Bd7 {[%clk 0:00:03.2]} 62... f3+ {[%clk
0:00:53.2]} 63. Kf2 {[%clk 0:00:03.4]} 63... Bc5+ {[%clk 0:00:52.5]} 64. Kf1
{[%clk 0:00:03.3]} 64... Be3 {[%clk 0:00:53.2]} 65. Bg4 {[%clk 0:00:02.8]} 65...
Bh6 {[%clk 0:00:52.4]} 66. Kf2 {[%clk 0:00:01.6]} 66... Kf4 {[%clk 0:00:53]} 67.
Bh3 {[%clk 0:00:01.4]} 67... e3+ {[%clk 0:00:52.9]} 68. Kf1 {[%clk 0:00:02.2]}
68... Kg3 {[%clk 0:00:51.9]} 69. Bc8 {[%clk 0:00:01.2]} 69... e2+ {[%clk
0:00:52]} 70. Ke1 {[%clk 0:00:01.8]} 70... Bf8 {[%clk 0:00:52]} 71. Ba6 {[%clk
0:00:01.1]} 71... Bb4# {[%clk 0:00:52]} 0-1